Cogmind - Beta 14 @@@ ROGUE MODE // 2024.09.01 @ 16:41:48 Player: Epsilon 11 Result: Destroyed by DAS Turret with DAS Cannon Performance ------------- Evolutions (1) 500 Regions Visited (5) 1000 Robots Destroyed (30) 150 Value Destroyed (648) 648 Prototype IDs (42) 840 Alien Tech Used (0) 0 Bonus (300) 300 TOTAL SCORE: 3438 Bonus ------- Aligned with FarCom 300 Cogmind --------- Core Integrity 0/400 Matter 52/300 Energy 98/100 System Corruption 0% Temperature Cool (0) Movement Core (50) Location -9/Exiles Parts ------- > --- POWER (1) -------- (None) > --- PROPULSION (2) --- (None) > --- UTILITY (3) ------ (None) > --- WEAPON (3) ------- (None) > --- INVENTORY (5) ---- Compact Wheel Peak State ------------ > --- POWER ------------ Light Nuclear Core > --- PROPULSION ------- Compact Wheel Compact Wheel > --- UTILITY ---------- Large Storage Unit Light Armor Plating Hardlight Generator > --- WEAPON ----------- Heavy Assault Rifle Heavy Assault Rifle Missile Launcher > --- INVENTORY -------- Reinforced Ion Engine Nuclear Core Reinforced Deuterium Engine Light Fission Core Light Treads Light Armor Plating Light Armor Plating Assault Rifle Heavy Assault Rifle [Rating: 19] Favorites ----------- Power Light Nuclear Core Engine Ion Engine Power Core Light Nuclear Core Propulsion Compact Wheel Treads Light Treads Wheel Compact Wheel Hover Unit Backup Propulsion I Utility Light Armor Plating Device Hardlight Generator Storage Large Storage Unit Protection Light Armor Plating Weapon Assault Rifle Energy Gun Backup Laser I Ballistic Gun Assault Rifle Ballistic Cannon Improved Light Cannon Launcher Missile Launcher Special Melee Weapon Datajack Build | -11 -10 -10 -9 -9 -9 ------- Run | Yrd Mat Min Mat Min Exi Slots Evolved 2 | . . . 2 . . Power . | . . . . . . Propulsion . | . . . . . . Utility 1 | . . . 1 . . Weapon 1 | . . . 1 . . Parts Attached 40 | 6 4 5 8 . 17 Power 3 | 1 . 1 . . 1 Engine 2 | 1 . . . . 1 Core 1 | . . 1 . . . Reactor . | . . . . . . Propulsion 7 | 2 1 . 2 . 2 Treads 2 | . . . . . 2 Leg . | . . . . . . Wheel 5 | 2 1 . 2 . . Hover . | . . . . . . Flight . | . . . . . . Utility 9 | 1 2 1 1 . 4 Device 2 | . 1 . 1 . . Storage 2 | 1 1 . . . . Processor . | . . . . . . Hackware . | . . . . . . Protection 5 | . . 1 . . 4 Artifact . | . . . . . . Weapon 21 | 2 1 3 5 . 10 Energy Gun . | . . . . . . Energy Cannon . | . . . . . . Ballistic Gun 15 | 2 1 1 3 . 8 Ballistic Cannon 2 | . . . 2 . . Launcher 3 | . . 2 . . 1 Special Weapon . | . . . . . . Impact Weapon . | . . . . . . Slashing Weapon . | . . . . . . Piercing Weapon . | . . . . . . Special Melee Weapon 1 | . . . . . 1 Unidentified Prototypes . | . . . . . . Parts Lost 17 | . 2 . . . 15 Power 2 | . . . . . 2 Propulsion 3 | . 1 . . . 2 Utility 5 | . . . . . 5 Weapon 7 | . 1 . . . 6 Highest Loss Streak 11 | . 2 . . . 11 To Critical Strikes 6 | . . . . . 6 Average Slot Usage (%) 97 | . 96 100 99 100 96 Engine 3 | . 14 2 . . 1 Core 8 | . . 11 11 11 9 Treads 1 | . . . . . 5 Wheel 20 | . 26 28 22 22 15 Device 10 | . 13 . 10 11 10 Storage 11 | . 14 14 11 11 9 Protection 9 | . . 14 11 11 12 Energy Gun 1 | . 6 . . . . Ballistic Gun 25 | . 20 26 32 33 23 Launcher 1 | . . 1 . . 3 Special Melee Weapon 2 | . . . . . 5 Peak Build Rating 19 | 6 8 11 17 16 19 Average Rating 12 | 5 6 9 15 16 15 On Entrance 9 | . 6 8 11 16 16 Naked Turns 2 | . . . . . 2 Heaviest Build 45 | 14 30 33 42 40 45 Greatest Support 40 | 26 32 32 32 32 40 Greatest Overweight (x) 1 | . . 1 1 1 1 Average Overweight (x) . | . . . 1 1 . Largest Inventory Capacity 15 | 8 15 15 15 15 15 Average Capacity 13 | 7 9 15 15 15 13 Most Carried 15 | 3 12 14 15 15 15 Average Carried 10 | 1 6 12 14 14 9 Final Capacity 15 | 8 15 15 15 15 5 Final Carried 15 | 3 12 14 15 15 1 Class Distribution -------------------- 49% | Tank 48% | Mutant Dominant Class ---------------- Mutant | -10/Materials Mutant | -10/Mines Tank | -9/Materials Tank | -9/Mines Mutant | -9/Exiles Resources | -11 -10 -10 -9 -9 -9 ----------- Run | Yrd Mat Min Mat Min Exi Matter Collected 1083 | 155 279 101 149 171 228 Remotely . | . . . . . . Salvage Created 877 | 66 295 117 191 187 21 Parts 64 | 4 18 14 13 15 . Haulers Intercepted . | . . . . . . Recyclers Shooed 1 | . 1 . . . . Parts Field Recycled . | . . . . . . Retrieved Matter . | . . . . . . Parts Self-Destructed . | . . . . . . Prevented . | . . . . . . Kills | -11 -10 -10 -9 -9 -9 ------- Run | Yrd Mat Min Mat Min Exi Combat Hostiles Destroyed 31 | . 10 6 4 8 3 Guns 25 | . 10 1 4 8 2 AOE 6 | . . 5 . . 1 Classes Destroyed 7 | 1 3 . 1 1 1 Recycler 1 | 1 . . . . . Watcher 1 | . 1 . . . . Swarmer 16 | . 6 3 1 6 . Grunt 8 | . 4 3 . 1 . Brawler 1 | . . . . 1 . Sentry 3 | . . . 3 . . Assembled 3 | . . . . . 3 Best Kill Streak 4 | 1 3 3 1 4 2 Combat Bots Only 4 | . 3 3 1 4 2 Max Kills in Single Turn 3 | 1 1 3 1 2 1 Gunslinging 1 | . . . . 1 . Exploded 3 | . . 3 . . 1 Melee . | . . . . . . Uniques/NPCs Destroyed . | . . . . . . Combat | -11 -10 -10 -9 -9 -9 -------- Run | Yrd Mat Min Mat Min Exi Hostile Shots Fired 216 | . 42 8 12 36 118 Missed 47 | . 6 3 6 5 27 Damage Taken 2251 | . 359 88 123 159 1522 Core 558 | . 114 41 62 17 324 Absorbed by Shields 412 | . . . 24 120 268 Core Remaining (%) 69 | 100 . 38 . . . Volleys Fired 131 | 4 43 6 14 20 44 Largest 3 | 2 2 2 3 3 3 Hottest 79 | 40 50 50 79 63 69 Shots Fired 295 | 8 74 10 39 48 116 Gun 289 | 8 74 7 37 48 115 Cannon 2 | . . . 2 . . Launcher 4 | . . 3 . . 1 Special . | . . . . . . Kinetic 276 | 8 59 7 39 48 115 Thermal 15 | . 15 . . . . Explosive 4 | . . 3 . . 1 Electromagnetic . | . . . . . . Robot Hit Streak 7 | 3 7 3 3 7 7 Robot Miss Streak 4 | 1 4 1 3 4 3 Penetration Max . | . . . . . . Secondary Targets 1 | . . . . 1 . Max Gunslinging Chain 1 | . . . . 1 . Shots Hit Robots 167 | 5 43 6 17 22 74 Core Hits 61 | 2 19 7 9 10 14 Critical Kills 1 | . . . . . 1 Critical Parts Destroyed . | . . . . . . Critical Strikes 1 | . . . . . 1 Destroy 1 | . . . . . 1 Melee Attacks 5 | . . . . . 5 Impact . | . . . . . . Slashing . | . . . . . . Piercing . | . . . . . . Sneak Attacks 5 | . . . . . 5 Combat Hostiles . | . . . . . . Follow-up Attacks . | . . . . . . Damage Inflicted 2424 | 58 511 210 219 328 1098 Guns 2196 | 58 511 50 219 328 1030 Cannons . | . . . . . . Explosions 228 | . . 160 . . 68 Melee . | . . . . . . Ramming . | . . . . . . Kinetic 2095 | 58 410 50 219 328 1030 Thermal 101 | . 101 . . . . Explosive 228 | . . 160 . . 68 Electromagnetic . | . . . . . . Impact . | . . . . . . Slashing . | . . . . . . Piercing . | . . . . . . Highest Corruption 1 | . . 1 . . . Average Corruption 1 | . . 1 . . . Corruption Purged . | . . . . . . Corruption Blocked . | . . . . . . Effects 3 | . . 3 . . . Message Errors 2 | . . 2 . . . Data Loss (minor) 1 | . . 1 . . . Overload Shots . | . . . . . . Overflow Damage . | . . . . . . Projectiles . | . . . . . . Explosions . | . . . . . . Melee . | . . . . . . Knockbacks . | . . . . . . Impact . | . . . . . . Kinetic . | . . . . . . Secondary . | . . . . . . Self-Inflicted Damage . | . . . . . . Shots . | . . . . . . Rammed . | . . . . . . Targets Rammed . | . . . . . . Kicked . | . . . . . . Crushed . | . . . . . . Highest Temperature 401 | . 2 9 30 25 401 Average Temperature 158 | . 2 7 11 10 231 Received Heat Transfer 143 | . 93 12 12 13 13 Effects 7 | . . . . . 7 Shutdowns 2 | . . . . . 2 Energy Bleed 1 | . . . . . 1 Interference 4 | . . . . . 4 Siege Activations . | . . . . . . Robots Corrupted . | . . . . . . Combat Hostiles . | . . . . . . Parts Fried . | . . . . . . Impact Corruptions . | . . . . . . Robots Melted . | . . . . . . Combat Hostiles . | . . . . . . Parts Melted . | . . . . . . Heat Transferred 407 | . 407 . . . . Parts Sabotaged . | . . . . . . Parts Stolen . | . . . . . . Parts Stripped . | . . . . . . Power Chain Reactions . | . . . . . . Alert | -11 -10 -10 -9 -9 -9 ------- Run | Yrd Mat Min Mat Min Exi Peak Influence 255 | 5 247 189 255 235 . Initial 73 | . 3 17 73 . . Average 124 | 1 119 67 138 149 . Maximum Alert Level 1 | . 1 . 1 1 . Low Security (%) 81 | 100 82 100 82 62 . Level 1 18 | . 17 . 17 37 . Level 2 . | . . . . . . Level 3 . | . . . . . . Level 4 . | . . . . . . Level 5 . | . . . . . . High Security . | . . . . . . Max Security . | . . . . . . Squads Dispatched 5 | . 2 1 2 . . Investigation 3 | . 1 1 1 . . Extermination . | . . . . . . Reinforcement 2 | . 1 . 1 . . Assault . | . . . . . . Garrison . | . . . . . . Intercept . | . . . . . . Searches Triggered . | . . . . . . Construction Impeded . | . . . . . . Haulers Reinforced . | . . . . . . Active Scanning Responses . | . . . . . . Cargo Convoy Interrupts . | . . . . . . Stealth | -11 -10 -10 -9 -9 -9 --------- Run | Yrd Mat Min Mat Min Exi Distress Signals 3 | . 3 . . . . Communications Jammed . | . . . . . . Distress Signals . | . . . . . . Times Spotted 59 | . 21 7 13 10 8 Peak Tracking Total 9 | . 4 3 2 4 9 Tactical Retreats 6 | . 3 . 2 1 . Traps | -11 -10 -10 -9 -9 -9 ------- Run | Yrd Mat Min Mat Min Exi Traps Triggered 3 | . 1 1 1 . . Indirectly . | . . . . . . Trap Hack Attempts . | . . . . . . Triggered . | . . . . . . Disarmed . | . . . . . . Reprogrammed 6 | . 6 . . . . Reused . | . . . . . . Traps Extracted . | . . . . . . Installed . | . . . . . . Triggered . | . . . . . . Machines | -11 -10 -10 -9 -9 -9 ---------- Run | Yrd Mat Min Mat Min Exi Machines Disabled 5 | . . 1 . . 4 Max in Single Turn 1 | . . 1 . . 1 Machines Repaired . | . . . . . . Machines Dismantled . | . . . . . . Machines Sabotaged . | . . . . . . Overloaded Fab Kills . | . . . . . . Hacking | -11 -10 -10 -9 -9 -9 --------- Run | Yrd Mat Min Mat Min Exi Machines Accessed 21 | . 10 2 7 . 2 Terminals 15 | . 8 . 7 . . Fabricators . | . . . . . . Repair Stations 1 | . 1 . . . . Recycling Units 1 | . 1 . . . . Scanalyzers . | . . . . . . Garrison Access . | . . . . . . Total Hacks 65 | . 39 2 22 . 2 Successful 35 | . 20 2 11 . 2 Failed 30 | . 19 . 11 . . Catastrophic 6 | . 5 . 1 . . Database Lockouts . | . . . . . . Manual 33 | . 17 . 15 . 1 Terminals 53 | . 31 . 22 . . Fabricators . | . . . . . . Repair Stations 3 | . 3 . . . . Recycling Units 5 | . 5 . . . . Scanalyzers . | . . . . . . Garrison Access . | . . . . . . Terminal Hacks 22 | . 12 2 6 . 2 Record 1 | . . . . . 1 Part Schematic 1 | . 1 . . . . Robot Analysis 1 | . 1 . . . . Prototype ID Bank 3 | . 2 . 1 . . Open Door 2 | . . 2 . . . Branch Access Points 2 | . 1 . 1 . . Emergency Access Points 1 | . . . 1 . . Terminal Index 2 | . 1 . 1 . . Unreport Threat 1 | . 1 . . . . Locate Traps 4 | . 2 . 2 . . Reprogram Traps 1 | . 1 . . . . Recall Investigation 1 | . 1 . . . . Hauler Manifests 1 | . 1 . . . . Derelict Proto ID Bank 1 | . . . . . 1 Fabricator Hacks . | . . . . . . Repair Station Hacks 2 | . 2 . . . . Scan Component 1 | . 1 . . . . Refit 1 | . 1 . . . . Recycling Unit Hacks 3 | . 3 . . . . Process 1 | . 1 . . . . Report Inventory 1 | . 1 . . . . Retrieve Matter 1 | . 1 . . . . Scanalyzer . | . . . . . . Garrison Access Hacks . | . . . . . . Unauthorized Hacks 8 | . 3 . 5 . . Terminals 8 | . 3 . 5 . . Botnet 7 | . 3 . 4 . . Operators 1 | . . . 1 . . Fabricators . | . . . . . . Repair Stations . | . . . . . . Recycling Units . | . . . . . . Scanalyzers . | . . . . . . Garrison Access . | . . . . . . Data Cores Recovered . | . . . . . . Used . | . . . . . . Hacking Detections 16 | . 9 . 7 . . Full Trace Events 1 | . 1 . . . . Feedback Events . | . . . . . . Feedback Blocked . | . . . . . . Robot Schematics Acquired . | . . . . . . Robots Built . | . . . . . . Authchips . | . . . . . . Time . | . . . . . . Total Robot Build Rating . | . . . . . . Part Schematics Acquired 1 | . 1 . . . . Parts Built . | . . . . . . Authchips . | . . . . . . Time . | . . . . . . Total Part Build Rating . | . . . . . . Parts Repaired . | . . . . . . Time . | . . . . . . Parts Recycled . | . . . . . . Recycled Matter 153 | . 153 . . . . Retrieved Matter 153 | . 153 . . . . Retrieved Components . | . . . . . . Parts Scanalyzed . | . . . . . . Part Schematics Acquired . | . . . . . . Parts Damaged . | . . . . . . Bothacking | -11 -10 -10 -9 -9 -9 ------------ Run | Yrd Mat Min Mat Min Exi Used RIF Installer . | . . . . . . Robots Hacked 4 | . . . . . 4 Non-combat 3 | . . . . . 3 Combat 1 | . . . . . 1 Robot Hacks Applied 5 | . . . . . 5 parse_system 5 | . . . . . 5 Relay Couplers Released . | . . . . . . Fabnet Peak Effective % . | . . . . . . Robots Rewired . | . . . . . . Allies Hacked . | . . . . . . Hacks Repelled . | . . . . . . Allies | -11 -10 -10 -9 -9 -9 -------- Run | Yrd Mat Min Mat Min Exi Total Allies . | . . . . . . Largest Group . | . . . . . . Highest-Rated Group . | . . . . . . Highest-Rated Ally . | . . . . . . Total Orders . | . . . . . . Ally Attacks . | . . . . . . Total Damage . | . . . . . . Kills . | . . . . . . Allies Corrupted . | . . . . . . Allies Melted . | . . . . . . Intel | -11 -10 -10 -9 -9 -9 ------- Run | Yrd Mat Min Mat Min Exi Robot Analysis Total 1 | . 1 . . . . Derelict Logs Recovered 1 | . . . . 1 . Drone Launches . | . . . . . . Drone Recoveries . | . . . . . . Exploration | -11 -10 -10 -9 -9 -9 ------------- Run | Yrd Mat Min Mat Min Exi Turns Passed 3577 | 51 792 195 825 368 1346 Spaces Moved 2551 | 31 620 161 603 237 899 Core 4 | 2 . . . . 2 Treads 98 | . . . . . 98 Legs . | . . . . . . Wheels 2449 | 29 620 161 603 237 799 Hover . | . . . . . . Flight . | . . . . . . Fastest Speed 50 | 50 90 100 115 115 50 Average Speed 113 | 89 98 101 115 115 125 Slowest Speed 240 | 100 100 115 115 115 240 Overloaded Moves . | . . . . . . Propulsion Burnouts . | . . . . . . Robots Hopped . | . . . . . . Cave-ins Triggered . | . . . . . . Exploration Rate (%) 52 | 4 93 51 60 38 70 Regions Visited 5 Branch Regions 3 Pre-discovered Areas 1 | . . . . . 1 Known Exits Taken 2 | . 1 . 1 . . Unknown Exits Taken 3 | 1 . 1 . 1 . Scrap Searched 1 | . . 1 . . . Spaces Dug . | . . . . . . Terrain Destroyed 25 | . . 17 . . 8 Melee . | . . . . . . Projectile . | . . . . . . AOE 25 | . . 17 . . 8 Terrain Rammed . | . . . . . . Walls Destroyed . | . . . . . . Machines Disabled . | . . . . . . Actions | -11 -10 -10 -9 -9 -9 --------- Run | Yrd Mat Min Mat Min Exi Total 2978 | 43 726 182 705 291 1031 Wait 171 | . 47 2 69 33 20 Move 2546 | 30 619 160 602 236 899 Hop . | . . . . . . Pick Up 42 | 3 9 5 6 1 18 Fast Attach 12 | 6 3 . 1 . 2 Attach 9 | . . . 2 . 7 Detach 1 | . 1 . . . . Swap 19 | . 1 5 5 . 8 Drop 42 | . 3 4 6 1 28 Fire 131 | 4 43 6 14 20 44 Melee 5 | . . . . . 5 Ram . | . . . . . . Kick . | . . . . . . Crush . | . . . . . . Escape Stasis . | . . . . . . Rewire . | . . . . . . Trap . | . . . . . . Miscellaneous . | . . . . . . Route ------- -11/Scrapyard -10/Materials (discovered 4 exits: *Mat x3 / *Min) -10/Mines (discovered 2 exits: *Mat x2) -9/Materials (discovered 3 exits: [*Mat x2] / *Min) -9/Mines (discovered 2 exits: [*Mat] / *Exi) -9/Exiles (discovered 1 exit: [*Min]) History --------- Turn | Location | Event 25 | -11/Scrapyard | Discovered new exit (range 16) 52 | -11/Scrapyard | Entered Materials 326 | -10/Materials | Build established: Mutant 347 | -10/Materials | Identified exit to Mines 392 | -10/Materials | Discovered new exit (range 11) 522 | -10/Materials | Discovered new exit (range 5) 654 | -10/Materials | Discovered new exit (range 11) 844 | -10/Materials | Entered Mines 849 | -10/Mines | Met a Derelict who couldn't figure out how to use a Trap Extractor 854 | -10/Mines | Core integrity fell below 50% 904 | -10/Mines | Received a Rocket Launcher from a helpful Derelict 989 | -10/Mines | Discovered new exit (range 5) 1002 | -10/Mines | Discovered new exit (range 8) 1011 | -10/Mines | Met a Derelict shopkeep closing up shop 1039 | -10/Mines | Entered Materials 1039 | -9/Materials | Evolved 2 slots: Utility x1, Weapon x1 1129 | -9/Materials | Identified exit to Mines 1298 | -9/Materials | Build established: Tank 1347 | -9/Materials | Discovered new exit (range 16) 1525 | -9/Materials | Discovered new exit (range 16) 1864 | -9/Materials | Entered Mines 1938 | -9/Mines | Discovered new exit (range 9) 2191 | -9/Mines | Learned 2 Materials zone layouts 2202 | -9/Mines | Deemed a non-threat by the Exiles lab entrance 2228 | -9/Mines | Discovered new exit (range 5) 2232 | -9/Mines | Entered Exiles 2261 | -9/Exiles | Met 8R-AWN 2286 | -9/Exiles | Met EX-HEX 2327 | -9/Exiles | Met EX-BIN 2398 | -9/Exiles | Met EX-DEC 2403 | -9/Exiles | Learned location of Zion (-7) 2462 | -9/Exiles | Aligned with FarCom system 2463 | -9/Exiles | Given EX-Vault access code 2492 | -9/Exiles | Opened EX-Vault 2520 | -9/Exiles | Warned to stay clear of 0b10 Research branches 2561 | -9/Exiles | Build established: Mutant 2621 | -9/Exiles | Discovered new exit (range 14) 3262 | -9/Exiles | Build established: Tank 3299 | -9/Exiles | Attacked by the Exiles 3550 | -9/Exiles | Core integrity fell below 50% 3570 | -9/Exiles | Lost 11 parts (1p1n5u4w) 3575 | -9/Exiles | Core integrity fell below 20% 3578 | -9/Exiles | Destroyed by DAS Turret with DAS Cannon Last Messages --------------- 03543_ HV Slug penetrates Wall. 03544_ Acquired 7 matter. 03549_ HV Slug penetrates Earth. 03549_ Penetrated by HV Slug. 03549_ HV Slug penetrates Wall. 03549_ Acquired 2 matter. 03554_ Acquired 10 matter. 03554_ HV Slug penetrates Wall. 03558_ Penetrated by HV Slug. 03560_ Acquired 4 matter. 03562_ HV Slug penetrates Wall. 03562_ HV Slug penetrates Machine. 03562_ HV Slug penetrates Wall. 03562_ HV Slug penetrates Machine. 03571_ Assault Rifle destroyed. 03571_ Penetrated by HV Slug. 03571_ Critical hit (Destroy). 03571_ Rnf. Ion Engine destroyed. 03574_ Hvy. Assault Rifle destroyed. 03576_ Lgt. Treads destroyed. Map ----- +----------------------------------------------------+ | ???????????????????????????????#####??# #??""" | | ???????????????????????????????""""""?# #???## | | ???????????????????????????????"""" ## #????? | | ??????????????????????????????#""X" #????? | | ??????????????????????????????#" #????? | | ??????????????????????????????#" ## #????? | | ??????????????????????????????#""""""?# #?#### | | ???????????????????????????????#"###??# #?#""" | | ??????????????????????????????????????# #?#""" | | ??????????????????????????????????????# #?#""" | | ?????????????????????????????????????## ###"" | | ?????#######?????????????????????????#" | | ?????#!!! "#?????????????????????????#" | | ?????# "#?????????????????????????#" | | ?????# "#?????????????????????????#" | | #???## ""#????????????######???????#" | | #####" ""#???????????? """#???????#" | | ##" ""#????????????" """#???????## | | # " ###???????????"" #????????# | | #???????????"" #????????#" "X" | | ##??????????"" "#????????#" """ | | #?????????? ""?????????#" """"" | | ####????????" "?????????##" ###### | | ! % " #????????# %#????????##"" #????? | | = ]## ""#####??### ###?######"" #????? | | ! "### "####X#@%#"###""""""" ##???? | | !""#?#" """""" " "" ##??? | | """ #?#"# % """ " #### | | "# #?#### % " " | | # #????##" | | # ##?????#### | | ## #?????????## | | ?# #??????????## | | ?# #???????????##" | | ?? #????????????#""" """""" | | ?? #???????????##" ######""" | | ?? #???????????#"" ""##????#####""" | | ?? ???????????##""" """##?????????##""" | | ?? ???????????#""" """##???????????#"""" | | ?? ???????????#""" ""#???????????##"" | | ??????????????#"" ########??####"""" | | ??????????????#""" ## ####""" | | ??????????????#"" """" | | ??????????????##"" | | ???????????????#"""" | | ???????????????## | | ????????????????#" " "" | | ????????????????#"""" ""## ##""" " | | ????????????????#"" ""#### ######"" | | ?????????????????" """"##??# #????### | +----------------------------------------------------+ Best States ------------- Heat Dissipation 35 Energy Generation 14 Energy Capacity 265 Matter Stores 300 Matter Capacity 300 Sight Range 16 Terrain Scan Density 10 Armor Coverage 300 Evasion (%) 42 Recoil Reduction 2 Item Schematics ----------------- Datajack | -10/Materials | Hacked Robot Schematics ------------------ None Fabricated ------------ Nothing Alien Tech Used ----------------- None Achievements -------------- None Challenges ------------ None Game ------ Seed ProcessingNetworkShifter Manual? 0 Play Time 00:43:54 Cumulative 154.5 hours Start 2024.09.01 @ 15:57:19 End 2024.09.01 @ 16:41:48 Sessions 1 Manual Loads 0 Difficulty Rogue Special Mode None Game No. 72 Rogue 29 Adventurer 43 Explorer 0 Win Type - Total 4 Types 2/0/1/0/0/0/0/1/0 Lore% 60 Gallery% 66 Achievement% 58 Wizard Run 0 Options --------- Layout 0 ASCII 0 Keyboard 0 Movement Mouse Keybinds 0 Fullscreen 1 Font 24/Smallcaps Map View 76x50 Zoom Use 0% Tactical HUD 1 Map Filters NONE Filters NONE Steam 1 RUN: b20e4ba0-8eb9-4f37-9d46-0bf22effa452